[Event "Vegagatan U1800-A"]
[Site "Goteborgs Schackcentrum, Vegatan 20, Gothenburg, Sweden"]
[Date "2025.05.03"]
[Round "1.1"]
[White "Gustavsson, Ville"]
[Black "Murugaraja, Yogeshwer"]
[Result "1/2-1/2"]
[TimeControl "30 minutes + 30 seconds per move from move one"]
[WhiteFideId "1792822"]
[BlackFideId "1779389"]
[WhiteElo "1752"]
[BlackElo "1762"]

1. e4 {[%clk 00:30:57]} {[%emt 00:00:02]} c5 {[%clk 00:30:55]} {[%emt
00:00:05]} 2. c3 {[%clk 00:31:21]} {[%emt 00:00:06]} d5 {[%clk 00:30:53]}
{[%emt 00:00:32]} 3. exd5 {[%clk 00:31:41]} {[%emt 00:00:11]} Qxd5 {[%clk
00:31:13]} {[%emt 00:00:09]} 4. Nf3 {[%clk 00:31:50]} {[%emt 00:00:22]} Bg4
{[%clk 00:30:22]} {[%emt 00:01:21]} 5. Qa4+ {[%clk 00:29:52]} {[%emt 00:02:27]}
Bd7 {[%clk 00:30:13]} {[%emt 00:00:39]} 6. Qf4 {[%clk 00:27:31]} {[%emt
00:02:51]} Bc6 {[%clk 00:27:50]} {[%emt 00:02:53]} 7. Bc4 {[%clk 00:26:27]}
{[%emt 00:01:35]} Qe4+ {[%clk 00:26:20]} {[%emt 00:01:58]} 8. Qxe4 {[%clk
00:25:40]} {[%emt 00:01:18]} Bxe4 {[%clk 00:26:49]} {[%emt 00:00:02]} 9. Ne5
{[%clk 00:22:37]} {[%emt 00:03:32]} e6 {[%clk 00:26:02]} {[%emt 00:01:17]} 10.
O-O {[%clk 00:19:49]} {[%emt 00:03:18]} Nc6 {[%clk 00:24:50]} {[%emt 00:01:43]}
11. Bb5 {[%clk 00:13:56]} {[%emt 00:06:23]} a6 {[%clk 00:24:18]} {[%emt
00:01:01]} 12. Bxc6+ {[%emt 00:00:35]} Bxc6 {[%clk 00:24:24]} {[%emt 00:00:01]}
13. Nxc6 {[%clk 00:14:35]} {[%emt 00:00:10]} bxc6 {[%clk 00:24:51]} {[%emt
00:00:03]} 14. Na3 {[%clk 00:14:43]} {[%emt 00:00:21]} Nf6 {[%clk 00:24:53]}
{[%emt 00:00:28]} 15. d3 {[%clk 00:12:50]} {[%emt 00:02:24]} Nd5 {[%clk
00:22:13]} {[%emt 00:03:09]} 16. Nc4 {[%clk 00:11:52]} {[%emt 00:01:28]} f6
{[%clk 00:19:14]} {[%emt 00:03:29]} 17. Re1 {[%clk 00:11:28]} {[%emt 00:00:55]}
Kd7 {[%clk 00:19:17]} {[%emt 00:00:26]} 18. Be3 {[%clk 00:05:38]} {[%emt
00:06:21]} Rb8 {[%clk 00:17:26]} {[%emt 00:02:20]} 19. Rab1 {[%clk 00:03:37]}
{[%emt 00:02:32]} Bd6 {[%clk 00:13:14]} {[%emt 00:04:42]} 20. Nd2 {[%clk
00:03:47]} {[%emt 00:00:21]} Rb7 {[%clk 00:12:42]} {[%emt 00:00:59]} 21. Ne4
{[%clk 00:04:04]} {[%emt 00:00:14]} Nxe3 {[%clk 00:12:43]} {[%emt 00:00:30]} 22.
Nxd6 {[%clk 00:03:39]} {[%emt 00:00:54]} Kxd6 {[%clk 00:12:40]} {[%emt
00:00:33]} 23. Rxe3 {[%clk 00:03:57]} {[%emt 00:00:12]} Rhb8 {[%clk 00:13:07]}
{[%emt 00:00:04]} 24. b3 {[%clk 00:04:14]} {[%emt 00:00:13]} a5 {[%clk
00:13:15]} {[%emt 00:00:22]} 25. Re4 {[%clk 00:02:15]} {[%emt 00:02:28]} f5
{[%clk 00:12:36]} {[%emt 00:01:10]} 26. Ra4 {[%clk 00:02:06]} {[%emt 00:00:39]}
Ra8 {[%clk 00:12:17]} {[%emt 00:00:48]} 27. Rd1 {[%clk 00:02:21]} {[%emt
00:00:15]} e5 {[%clk 00:11:27]} {[%emt 00:01:20]} 28. f3 {[%clk 00:02:16]}
{[%emt 00:00:35]} Kd5 {[%clk 00:10:08]} {[%emt 00:01:50]} 29. Kf2 {[%clk
00:02:05]} {[%emt 00:00:40]} g5 {[%clk 00:08:38]} {[%emt 00:02:00]} 30. h4
{[%clk 00:01:23]} {[%emt 00:01:12]} gxh4 {[%clk 00:07:21]} {[%emt 00:01:47]} 31.
d4 {[%clk 00:01:01]} {[%emt 00:00:52]} cxd4 {[%clk 00:06:47]} {[%emt 00:01:05]}
32. cxd4 {[%clk 00:01:21]} {[%emt 00:00:10]} e4 {[%clk 00:06:57]} {[%emt
00:00:19]} 33. Rh1 {[%clk 00:01:20]} {[%emt 00:00:31]} Rb4 {[%clk 00:06:44]}
{[%emt 00:00:43]} 34. Ke3 {[%clk 00:01:08]} {[%emt 00:00:42]} exf3 {[%clk
00:06:27]} {[%emt 00:00:48]} 35. gxf3 {[%clk 00:01:35]} {[%emt 00:00:03]} Rxa4
{[%clk 00:05:37]} {[%emt 00:01:20]} 36. bxa4 {[%clk 00:01:55]} {[%emt
00:00:09]} Rb8 {[%clk 00:04:19]} {[%emt 00:01:48]} 37. Rxh4 {[%clk 00:01:23]}
{[%emt 00:01:02]} Rb4 {[%emt 00:00:55]} 38. Rxh7 {[%clk 00:01:36]} Rxa4 {[%clk
00:04:17]} {[%emt 00:00:24]} 39. Rh5 {[%clk 00:01:12]} {[%emt 00:00:54]} Rxa2
{[%clk 00:04:02]} {[%emt 00:00:45]} 40. Rxf5+ {[%clk 00:01:32]} {[%emt
00:00:11]} Ke6 {[%clk 00:04:14]} {[%emt 00:00:17]} 41. Rc5 {[%clk 00:01:14]}
{[%emt 00:00:49]} 1/2-1/2

[Event "Vegagatan U1800-A"]
[Site "Goteborgs Schackcentrum, Vegatan 20, Gothenburg, Sweden"]
[Date "2025.05.03"]
[Round "1.2"]
[White "Nilsson, Christer"]
[Black "Hitcher, Oscar"]
[Result "1/2-1/2"]
[TimeControl "30 minutes + 30 seconds per move from move one"]
[WhiteFideId "1777602"]
[BlackFideId "1746901"]
[WhiteElo "1710"]
[BlackElo "1716"]

1. e4 {[%clk 00:30:54]} {[%emt 00:00:05]} e6 {[%clk 00:30:23]} {[%emt
00:00:39]} 2. Nf3 {[%clk 00:30:05]} {[%emt 00:01:19]} d5 {[%clk 00:30:36]}
{[%emt 00:00:16]} 3. exd5 {[%clk 00:28:57]} {[%emt 00:01:39]} exd5 {[%clk
00:30:41]} {[%emt 00:00:25]} 4. d4 {[%clk 00:29:15]} {[%emt 00:00:11]} Nf6
{[%clk 00:30:52]} {[%emt 00:00:20]} 5. c3 {[%clk 00:28:53]} {[%emt 00:00:53]}
Bg4 {[%clk 00:30:48]} {[%emt 00:00:33]} 6. h3 {[%clk 00:28:50]} {[%emt
00:00:32]} Bh5 {[%clk 00:31:00]} {[%emt 00:00:18]} 7. Bd3 {[%clk 00:28:55]}
{[%emt 00:00:25]} Be7 {[%clk 00:30:44]} {[%emt 00:00:45]} 8. O-O {[%clk
00:29:15]} {[%emt 00:00:12]} O-O {[%clk 00:30:53]} {[%emt 00:00:21]} 9. Re1
{[%clk 00:29:18]} {[%emt 00:00:27]} Nbd7 {[%clk 00:30:55]} {[%emt 00:00:28]} 10.
Nbd2 {[%clk 00:29:30]} {[%emt 00:00:17]} Re8 {[%clk 00:31:05]} {[%emt
00:00:21]} 11. Nf1 {[%clk 00:29:19]} {[%emt 00:00:41]} Bd6 {[%clk 00:30:37]}
{[%emt 00:00:57]} 12. Rxe8+ {[%clk 00:27:13]} {[%emt 00:02:36]} Qxe8 {[%clk
00:30:18]} {[%emt 00:00:50]} 13. Ng3 {[%clk 00:22:51]} {[%emt 00:04:52]} Bxg3
{[%clk 00:30:20]} {[%emt 00:00:26]} 14. fxg3 {[%clk 00:23:13]} {[%emt
00:00:09]} c5 {[%clk 00:27:07]} {[%emt 00:03:43]} 15. g4 {[%clk 00:22:33]}
{[%emt 00:01:10]} Bg6 {[%clk 00:27:12]} {[%emt 00:00:25]} 16. Bf4 {[%clk
00:22:39]} {[%emt 00:00:24]} Bxd3 {[%clk 00:25:56]} {[%emt 00:01:47]} 17. Qxd3
{[%clk 00:22:56]} {[%emt 00:00:13]} c4 {[%clk 00:25:25]} {[%emt 00:01:01]} 18.
Qc2 {[%clk 00:22:16]} {[%emt 00:01:10]} Qe4 {[%clk 00:24:57]} {[%emt 00:00:58]}
19. Qd2 {[%clk 00:22:08]} {[%emt 00:00:38]} Re8 {[%clk 00:21:23]} {[%emt
00:04:03]} 20. Re1 {[%clk 00:20:56]} {[%emt 00:01:42]} Qg6 {[%clk 00:20:36]}
{[%emt 00:01:17]} 21. Rxe8+ {[%clk 00:15:57]} {[%emt 00:05:29]} Nxe8 {[%clk
00:20:53]} {[%emt 00:00:13]} 22. a3 {[%clk 00:13:48]} {[%emt 00:02:39]} Qb1+
{[%clk 00:19:13]} {[%emt 00:02:10]} 23. Kh2 {[%clk 00:13:38]} {[%emt 00:00:41]}
Nef6 {[%clk 00:19:05]} {[%emt 00:00:38]} 24. Qe2 {[%clk 00:11:58]} {[%emt
00:02:11]} Qe4 {[%clk 00:18:46]} {[%emt 00:00:47]} 25. Qd2 {[%clk 00:11:51]}
{[%emt 00:00:37]} b5 {[%clk 00:16:42]} {[%emt 00:02:35]} 26. Nh4 {[%clk
00:10:02]} {[%emt 00:02:18]} g6 {[%clk 00:15:34]} {[%emt 00:01:38]} 27. Nf3
{[%clk 00:10:09]} {[%emt 00:00:23]} a5 {[%clk 00:14:43]} {[%emt 00:01:22]} 28.
Ne5 {[%clk 00:09:40]} {[%emt 00:00:59]} Nxe5 {[%clk 00:14:03]} {[%emt
00:01:10]} 29. Bxe5 {[%clk 00:09:23]} {[%emt 00:00:47]} Nd7 {[%clk 00:13:33]}
{[%emt 00:01:00]} 30. Bc7 {[%clk 00:08:38]} {[%emt 00:01:15]} a4 {[%clk
00:13:24]} {[%emt 00:00:39]} 31. Bf4 {[%clk 00:08:23]} 1/2-1/2

[Event "Vegagatan U1800-A"]
[Site "Goteborgs Schackcentrum, Vegatan 20, Gothenburg, Sweden"]
[Date "2025.05.03"]
[Round "1.3"]
[White "Al Jomaa, Valid"]
[Black "Evertsson, David"]
[Result "1-0"]
[TimeControl "30 minutes + 30 seconds per move from move one"]
[WhiteFideId "1766554"]
[BlackFideId "1777424"]
[WhiteElo "1720"]
[BlackElo "1705"]

1. d4 {[%clk 00:30:56]} {[%emt 00:00:03]} Nf6 {[%clk 00:30:57]} {[%emt
00:00:05]} 2. c4 {[%clk 00:31:19]} {[%emt 00:00:05]} e6 {[%clk 00:31:23]}
{[%emt 00:00:06]} 3. Nc3 {[%clk 00:31:42]} {[%emt 00:00:06]} Bb4 {[%clk
00:31:47]} {[%emt 00:00:07]} 4. Qc2 {[%clk 00:32:03]} {[%emt 00:00:09]} d5
{[%clk 00:32:10]} {[%emt 00:00:07]} 5. cxd5 {[%clk 00:32:26]} {[%emt 00:00:07]}
exd5 {[%clk 00:32:29]} {[%emt 00:00:10]} 6. Bg5 {[%clk 00:32:45]} {[%emt
00:00:11]} c5 {[%clk 00:31:26]} {[%emt 00:01:34]} 7. Nf3 {[%clk 00:29:05]}
{[%emt 00:04:10]} Nc6 {[%clk 00:30:03]} {[%emt 00:01:54]} 8. dxc5 {[%clk
00:23:47]} {[%emt 00:05:47]} Be6 {[%clk 00:20:03]} {[%emt 00:10:30]} 9. e3
{[%clk 00:22:11]} {[%emt 00:02:06]} Qa5 {[%clk 00:19:32]} {[%emt 00:01:01]} 10.
Bxf6 {[%clk 00:21:14]} {[%emt 00:01:27]} gxf6 {[%clk 00:18:53]} {[%emt
00:01:08]} 11. Nd4 {[%clk 00:13:50]} {[%emt 00:07:52]} Qxc5 {[%clk 00:14:08]}
{[%emt 00:05:19]} 12. Bb5 {[%clk 00:11:03]} {[%emt 00:03:16]} Rg8 {[%clk
00:12:30]} {[%emt 00:02:08]} 13. Bxc6+ {[%clk 00:07:31]} {[%emt 00:04:02]} bxc6
{[%clk 00:12:43]} {[%emt 00:00:17]} 14. Nxe6 {[%clk 00:07:56]} {[%emt
00:00:06]} fxe6 {[%clk 00:12:13]} {[%emt 00:00:59]} 15. O-O {[%clk 00:07:47]}
{[%emt 00:00:39]} Rg7 {[%clk 00:09:33]} {[%emt 00:03:10]} 16. Rac1 {[%clk
00:04:03]} {[%emt 00:04:12]} Ke7 {[%clk 00:03:25]} {[%emt 00:06:39]} 17. a3
{[%clk 00:04:13]} {[%emt 00:00:21]} Bxc3 {[%clk 00:02:31]} {[%emt 00:01:23]} 18.
Qxc3 {[%clk 00:04:37]} {[%emt 00:00:06]} Qxc3 {[%clk 00:02:45]} {[%emt
00:00:17]} 19. Rxc3 {[%clk 00:05:03]} {[%emt 00:00:04]} Rag8 {[%clk 00:02:47]}
{[%emt 00:00:29]} 20. g3 {[%clk 00:05:05]} {[%emt 00:00:27]} Kd6 {[%clk
00:02:43]} {[%emt 00:00:34]} 21. Rfc1 {[%clk 00:05:06]} {[%emt 00:00:29]} Rc8
{[%clk 00:02:37]} {[%emt 00:00:36]} 22. Rc5 {[%clk 00:04:59]} {[%emt 00:00:37]}
Rgc7 {[%clk 00:01:48]} {[%emt 00:01:20]} 23. b4 {[%clk 00:04:19]} {[%emt
00:01:10]} Kd7 {[%clk 00:01:52]} {[%emt 00:00:25]} 24. Kg2 {[%clk 00:04:11]}
{[%emt 00:00:38]} Kd6 {[%clk 00:02:18]} {[%emt 00:00:05]} 25. Kf3 {[%clk
00:03:31]} {[%emt 00:01:09]} Kd7 {[%clk 00:01:23]} {[%emt 00:01:25]} 26. h4
{[%clk 00:03:31]} {[%emt 00:00:30]} Kd6 {[%clk 00:01:24]} {[%emt 00:00:29]} 27.
g4 {[%clk 00:02:49]} {[%emt 00:01:12]} Kd7 {[%clk 00:01:19]} {[%emt 00:00:35]}
28. Kg3 {[%clk 00:02:47]} {[%emt 00:00:33]} Kd6 {[%clk 00:01:42]} {[%emt
00:00:07]} 29. f4 {[%clk 00:03:05]} {[%emt 00:00:12]} Kd7 {[%clk 00:01:47]}
{[%emt 00:00:25]} 30. g5 {[%clk 00:03:11]} {[%emt 00:00:23]} fxg5 {[%clk
00:01:57]} {[%emt 00:00:20]} 31. fxg5 {[%clk 00:03:33]} {[%emt 00:00:09]} Kd6
{[%clk 00:01:08]} {[%emt 00:01:19]} 32. Kg4 {[%clk 00:03:48]} {[%emt 00:00:14]}
Kd7 {[%clk 00:01:22]} {[%emt 00:00:16]} 33. h5 {[%clk 00:02:10]} {[%emt
00:02:08]} Kd6 {[%clk 00:01:46]} {[%emt 00:00:06]} 34. g6 {[%clk 00:01:36]}
{[%emt 00:01:04]} hxg6 {[%clk 00:01:12]} {[%emt 00:01:04]} 35. hxg6 {[%clk
00:02:00]} {[%emt 00:00:06]} Kd7 {[%clk 00:00:59]} {[%emt 00:00:43]} 36. Kg5
{[%clk 00:02:13]} {[%emt 00:00:16]} Kd6 {[%clk 00:01:24]} {[%emt 00:00:06]} 37.
Rh1 {[%clk 00:01:47]} {[%emt 00:00:52]} Rg8 {[%clk 00:01:34]} {[%emt 00:00:25]}
38. Rh6 {[%clk 00:01:33]} {[%emt 00:00:43]} Rcg7 {[%clk 00:01:45]} {[%emt
00:00:19]} 39. Kf6 {[%clk 00:00:51]} {[%emt 00:01:12]} Kd7 {[%clk 00:01:28]}
{[%emt 00:00:45]} 40. Rh7 {[%clk 00:01:08]} {[%emt 00:00:15]} Rxh7 {[%clk
00:00:42]} {[%emt 00:01:16]} 41. gxh7 {[%clk 00:01:36]} {[%emt 00:00:03]} Rc8
{[%clk 00:00:40]} {[%emt 00:00:31]} 42. Kg7 {[%clk 00:01:45]} {[%emt 00:00:20]}
Re8 {[%clk 00:00:32]} {[%emt 00:00:39]} 43. h8=Q {[%clk 00:01:34]} {[%emt
00:00:42]} Rxh8 {[%clk 00:00:51]} {[%emt 00:00:10]} 44. Kxh8 {[%clk 00:02:00]}
{[%emt 00:00:04]} Kd6 {[%clk 00:01:11]} {[%emt 00:00:10]} 45. Kg7 {[%clk
00:01:58]} {[%emt 00:00:32]} e5 {[%clk 00:01:34]} {[%emt 00:00:07]} 46. Kf6
{[%clk 00:01:35]} {[%emt 00:00:54]} a6 {[%clk 00:01:00]} {[%emt 00:01:04]} 47.
Kf5 {[%clk 00:01:47]} {[%emt 00:00:17]} e4 {[%clk 00:01:14]} {[%emt 00:00:16]}
48. Ra5 {[%clk 00:01:29]} {[%emt 00:00:48]} Kc7 {[%clk 00:01:05]} {[%emt
00:00:40]} 49. Rxa6 {[%clk 00:01:10]} {[%emt 00:00:49]} Kb7 {[%clk 00:01:30]}
{[%emt 00:00:04]} 50. Ra5 {[%clk 00:01:31]} {[%emt 00:00:09]} Kb8 {[%clk
00:01:17]} {[%emt 00:00:43]} 51. Rc5 {[%clk 00:01:43]} {[%emt 00:00:17]} Kb7
{[%clk 00:01:40]} {[%emt 00:00:08]} 52. Ke5 {[%clk 00:02:07]} {[%emt 00:00:06]}
Kc7 {[%clk 00:01:50]} {[%emt 00:00:20]} 53. Rxd5 {[%clk 00:02:25]} {[%emt
00:00:12]} cxd5 {[%clk 00:02:11]} {[%emt 00:00:09]} 54. Kxd5 {[%clk 00:02:50]}
{[%emt 00:00:05]} 1-0

[Event "Vegagatan U1800-A"]
[Site "Goteborgs Schackcentrum, Vegatan 20, Gothenburg, Sweden"]
[Date "2025.05.03"]
[Round "1.4"]
[White "Norberg, Peter"]
[Black "Zejak, Branislav"]
[Result "1/2-1/2"]
[TimeControl "30 minutes + 30 seconds per move from move one"]
[WhiteFideId "1776185"]
[BlackFideId "1722565"]
[WhiteElo "1799"]
[BlackElo "1768"]

1. e4 {[%clk 00:30:58]} {[%emt 00:00:01]} c6 {[%clk 00:30:55]} {[%emt
00:00:06]} 2. d4 {[%clk 00:31:19]} {[%emt 00:00:09]} d5 {[%clk 00:31:06]}
{[%emt 00:00:19]} 3. e5 {[%clk 00:31:39]} {[%emt 00:00:11]} c5 {[%clk
00:31:12]} {[%emt 00:00:23]} 4. c3 {[%clk 00:31:20]} {[%emt 00:00:49]} Nc6
{[%clk 00:31:35]} {[%emt 00:00:07]} 5. Nf3 {[%clk 00:31:20]} {[%emt 00:00:29]}
cxd4 {[%clk 00:31:19]} {[%emt 00:00:46]} 6. cxd4 {[%clk 00:30:55]} {[%emt
00:00:56]} Bg4 {[%clk 00:31:28]} {[%emt 00:00:20]} 7. Bb5 {[%clk 00:24:33]}
{[%emt 00:06:52]} e6 {[%clk 00:31:16]} {[%emt 00:00:42]} 8. Nbd2 {[%clk
00:20:06]} {[%emt 00:04:57]} Nge7 {[%clk 00:26:17]} {[%emt 00:05:29]} 9. O-O
{[%clk 00:17:10]} {[%emt 00:03:26]} a6 {[%clk 00:25:20]} {[%emt 00:01:27]} 10.
Be2 {[%clk 00:16:04]} {[%emt 00:01:36]} Nf5 {[%clk 00:23:36]} {[%emt 00:02:14]}
11. Nb3 {[%clk 00:15:07]} {[%emt 00:01:27]} Rc8 {[%clk 00:18:02]} {[%emt
00:06:05]} 12. a3 {[%clk 00:11:34]} {[%emt 00:04:03]} Be7 {[%clk 00:15:34]}
{[%emt 00:02:57]} 13. h3 {[%clk 00:10:58]} {[%emt 00:01:06]} Bxf3 {[%clk
00:15:21]} {[%emt 00:00:44]} 14. Bxf3 {[%clk 00:11:14]} {[%emt 00:00:13]} O-O
{[%clk 00:15:24]} {[%emt 00:00:28]} 15. Qd3 {[%clk 00:09:44]} {[%emt 00:01:59]}
Qb6 {[%clk 00:15:04]} {[%emt 00:00:51]} 16. Be3 {[%clk 00:09:22]} {[%emt
00:00:51]} Rfd8 {[%clk 00:13:44]} {[%emt 00:01:50]} 17. Rac1 {[%clk 00:08:21]}
{[%emt 00:01:31]} g6 {[%clk 00:12:59]} {[%emt 00:01:16]} 18. g4 {[%clk
00:06:40]} {[%emt 00:02:11]} Nxe3 {[%clk 00:12:05]} {[%emt 00:01:23]} 19. fxe3
{[%clk 00:05:55]} {[%emt 00:01:15]} Na5 {[%clk 00:12:05]} {[%emt 00:00:30]} 20.
Nxa5 {[%clk 00:05:28]} {[%emt 00:00:57]} Qxa5 {[%clk 00:12:23]} {[%emt
00:00:09]} 21. b4 {[%clk 00:05:03]} {[%emt 00:00:59]} Qb6 {[%clk 00:11:56]}
{[%emt 00:00:57]} 22. Rc3 {[%clk 00:04:25]} {[%emt 00:01:07]} Rc6 {[%clk
00:07:18]} {[%emt 00:05:08]} 23. Rfc1 {[%clk 00:02:58]} {[%emt 00:01:57]} Rdc8
{[%clk 00:07:13]} {[%emt 00:00:36]} 24. e4 {[%clk 00:02:36]} {[%emt 00:00:52]}
Rxc3 {[%clk 00:05:27]} {[%emt 00:02:15]} 25. Rxc3 {[%emt 00:00:06]} Rxc3 {[%clk
00:05:34]} {[%emt 00:00:20]} 26. Qxc3 {[%clk 00:03:33]} Qc6 {[%clk 00:05:46]}
{[%emt 00:00:17]} 27. Qxc6 {[%clk 00:03:17]} {[%emt 00:00:46]} bxc6 {[%clk
00:06:10]} {[%emt 00:00:07]} 28. exd5 {[%clk 00:03:38]} {[%emt 00:00:08]} exd5
{[%clk 00:05:59]} {[%emt 00:00:41]} 29. Be2 {[%clk 00:03:31]} {[%emt 00:00:37]}
Bg5 {[%clk 00:05:15]} {[%emt 00:01:15]} 30. Kf2 {[%clk 00:02:25]} {[%emt
00:01:36]} Bc1 {[%clk 00:05:30]} {[%emt 00:00:14]} 31. a4 {[%clk 00:02:18]}
{[%emt 00:00:38]} Bd2 {[%clk 00:05:19]} {[%emt 00:00:40]} 32. Bxa6 {[%clk
00:02:13]} {[%emt 00:00:36]} Bxb4 {[%clk 00:05:30]} {[%emt 00:00:19]} 33. Bb7
{[%clk 00:01:48]} {[%emt 00:00:55]} c5 {[%clk 00:05:47]} {[%emt 00:00:13]} 34.
dxc5 {[%clk 00:01:11]} {[%emt 00:01:07]} Bxc5+ {[%clk 00:05:59]} {[%emt
00:00:18]} 35. Ke2 {[%clk 00:01:28]} {[%emt 00:00:13]} d4 {[%clk 00:03:36]}
{[%emt 00:02:53]} 36. Bd5 {[%clk 00:01:30]} {[%emt 00:00:28]} Kg7 {[%clk
00:03:18]} {[%emt 00:00:48]} 37. Kd3 {[%clk 00:01:39]} {[%emt 00:00:20]} f5
{[%clk 00:03:11]} {[%emt 00:00:37]} 38. gxf5 {[%clk 00:01:19]} {[%emt
00:00:51]} gxf5 {[%clk 00:03:26]} {[%emt 00:00:15]} 39. e6 {[%clk 00:01:17]}
{[%emt 00:00:31]} Kf6 {[%clk 00:03:19]} {[%emt 00:00:37]} 40. a5 {[%clk
00:01:19]} {[%emt 00:00:29]} Ke5 {[%clk 00:02:18]} {[%emt 00:01:31]} 41. Bc4
{[%clk 00:01:37]} {[%emt 00:00:11]} Kd6 {[%clk 00:01:49]} {[%emt 00:00:59]} 42.
a6 {[%clk 00:01:44]} {[%emt 00:00:24]} Ba7 {[%clk 00:01:37]} {[%emt 00:00:43]}
43. Ke2 {[%clk 00:01:24]} {[%emt 00:00:48]} Ke7 {[%clk 00:01:55]} {[%emt
00:00:12]} 44. Kf3 {[%clk 00:01:34]} {[%emt 00:00:20]} Kf6 {[%clk 00:02:02]}
{[%emt 00:00:24]} 45. Kg3 {[%clk 00:01:02]} {[%emt 00:01:02]} Bb8+ {[%clk
00:01:07]} {[%emt 00:01:25]} 46. Kh4 {[%clk 00:01:17]} {[%emt 00:00:15]} d3
{[%clk 00:00:59]} {[%emt 00:00:37]} 47. Bb3 {[%clk 00:00:46]} {[%emt 00:01:01]}
d2 {[%clk 00:01:15]} {[%emt 00:00:15]} 48. Kh5 {[%clk 00:00:49]} {[%emt
00:00:27]} d1=Q+ {[%clk 00:00:55]} {[%emt 00:00:49]} 49. Bxd1 {[%clk 00:01:17]}
{[%emt 00:00:02]} Kxe6 {[%clk 00:01:15]} {[%emt 00:00:11]} 50. Kh6 {[%clk
00:01:32]} {[%emt 00:00:15]} f4 {[%clk 00:01:13]} {[%emt 00:00:31]} 51. Kxh7
{[%clk 00:01:26]} {[%emt 00:00:36]} Kd6 {[%clk 00:01:04]} {[%emt 00:00:39]} 52.
Kg6 {[%clk 00:00:58]} {[%emt 00:00:59]} Ke7 {[%clk 00:00:35]} {[%emt 00:00:59]}
53. h4 {[%clk 00:00:43]} {[%emt 00:00:48]} Kf8 {[%clk 00:00:33]} {[%emt
00:00:29]} 54. h5 {[%clk 00:01:03]} {[%emt 00:00:09]} Kg8 {[%clk 00:00:43]}
{[%emt 00:00:21]} 55. Kf5 {[%clk 00:00:52]} {[%emt 00:00:41]} Kh7 {[%clk
00:00:51]} {[%emt 00:00:22]} 56. Ke6 {[%clk 00:01:02]} {[%emt 00:00:20]} Kh6
{[%clk 00:01:03]} {[%emt 00:00:18]} 57. Kd7 {[%clk 00:01:08]} {[%emt 00:00:24]}
Ba7 {[%clk 00:01:13]} {[%emt 00:00:21]} 58. Kc6 {[%clk 00:01:18]} {[%emt
00:00:20]} Be3 {[%clk 00:01:22]} {[%emt 00:00:21]} 59. Kb7 {[%clk 00:01:30]}
{[%emt 00:00:18]} Bd4 {[%clk 00:01:37]} {[%emt 00:00:14]} 60. a7 {[%clk
00:01:38]} {[%emt 00:00:22]} Bxa7 {[%clk 00:01:45]} {[%emt 00:00:22]} 61. Kxa7
{[%clk 00:02:04]} {[%emt 00:00:05]} Kg5 {[%clk 00:01:46]} {[%emt 00:00:29]} 62.
Kb6 {[%clk 00:02:26]} {[%emt 00:00:07]} Kh6 {[%clk 00:02:02]} {[%emt 00:00:14]}
63. Kc5 {[%clk 00:02:50]} {[%emt 00:00:06]} Kg5 {[%clk 00:02:16]} {[%emt
00:00:15]} 64. Kd5 {[%clk 00:03:13]} {[%emt 00:00:08]} Kf5 {[%clk 00:01:06]}
{[%emt 00:01:40]} 65. Kd4 {[%clk 00:03:32]} {[%emt 00:00:12]} Kg5 {[%clk
00:01:16]} {[%emt 00:00:20]} 66. Ke5 {[%clk 00:03:50]} {[%emt 00:00:11]} Kh6
{[%clk 00:01:30]} {[%emt 00:00:17]} 67. Kxf4 {[%clk 00:04:13]} {[%emt
00:00:07]} Kg7 {[%clk 00:01:40]} {[%emt 00:00:20]} 68. Kf5 {[%clk 00:03:14]}
{[%emt 00:01:29]} Kh6 {[%clk 00:00:48]} {[%emt 00:01:21]} 69. Kf6 {[%clk
00:01:44]} {[%emt 00:02:00]} Kh7 {[%clk 00:01:08]} {[%emt 00:00:11]} 70. Kf7
{[%clk 00:01:14]} {[%emt 00:01:00]} Kh8 {[%clk 00:01:13]} {[%emt 00:00:25]} 71.
Bg4 {[%clk 00:00:43]} {[%emt 00:01:01]} Kh7 {[%clk 00:01:26]} {[%emt 00:00:17]}
72. Bf5 {[%clk 00:00:52]} {[%emt 00:00:21]} Kh8 {[%clk 00:01:26]} {[%emt
00:00:29]} 73. Ke8 {[%clk 00:00:35]} {[%emt 00:00:47]} Kg7 {[%clk 00:00:55]}
{[%emt 00:01:01]} 74. Be6 {[%clk 00:00:46]} {[%emt 00:00:20]} Kh6 {[%clk
00:00:43]} {[%emt 00:00:41]} 75. Bf7 {[%clk 00:01:05]} {[%emt 00:00:11]} Kg7
{[%clk 00:00:54]} {[%emt 00:00:20]} 76. Ke7 {[%clk 00:00:59]} {[%emt 00:00:35]}
Kh6 {[%clk 00:00:55]} {[%emt 00:00:29]} 77. Kf8 {[%clk 00:01:00]} {[%emt
00:00:29]} Kh7 {[%clk 00:01:16]} {[%emt 00:00:09]} 78. Bg6+ {[%clk 00:01:18]}
{[%emt 00:00:13]} Kh8 {[%clk 00:01:31]} {[%emt 00:00:15]} 79. Ke7 {[%clk
00:01:25]} {[%emt 00:00:23]} Kg7 {[%clk 00:01:47]} {[%emt 00:00:14]} 80. Ke6
{[%clk 00:01:08]} {[%emt 00:00:47]} Kh8 {[%clk 00:01:59]} {[%emt 00:00:17]} 81.
Kf6 {[%clk 00:01:08]} {[%emt 00:00:30]} Kg8 {[%clk 00:02:05]} {[%emt 00:00:24]}
82. Kg5 {[%clk 00:01:24]} {[%emt 00:00:14]} Kg7 {[%clk 00:02:04]} {[%emt
00:00:32]} 83. h6+ {[%clk 00:01:35]} {[%emt 00:00:19]} Kh8 {[%clk 00:01:39]}
{[%emt 00:00:54]} 84. Kf6 {[%clk 00:01:12]} {[%emt 00:00:53]} Kg8 {[%clk
00:01:59]} {[%emt 00:00:10]} 85. Bf7+ {[%clk 00:01:10]} {[%emt 00:00:33]} Kh7
{[%clk 00:02:07]} {[%emt 00:00:21]} 86. Kg5 {[%clk 00:01:14]} {[%emt 00:00:26]}
Kh8 {[%clk 00:02:19]} {[%emt 00:00:18]} 87. Bg6 {[%clk 00:01:39]} {[%emt
00:00:04]} Kg8 {[%clk 00:02:36]} {[%emt 00:00:14]} 88. h7+ {[%clk 00:02:07]}
{[%emt 00:00:02]} Kg7 {[%clk 00:02:32]} {[%emt 00:00:33]} 89. Kf5 {[%clk
00:02:32]} {[%emt 00:00:06]} Kh8 {[%clk 00:02:39]} {[%emt 00:00:24]} 90. Ke6
{[%clk 00:02:59]} {[%emt 00:00:03]} Kg7 {[%clk 00:02:42]} {[%emt 00:00:26]} 91.
Ke7 {[%clk 00:03:22]} {[%emt 00:00:07]} Kh8 {[%clk 00:03:02]} {[%emt 00:00:10]}
1/2-1/2